[Event "*** Titled Tuesday Blitz"]
[Site "Chess.com"]
[Date "2020.04.21"]
[Round "9"]
[White "isla88"]
[Black "Kimster98"]
[Result "0-1"]
[WhiteElo "2328"]
[BlackElo "2546"]
[TimeControl "180+1"]
[EndTime "11:49:25 PDT"]
[Termination "Kimster98 won by resignation"]

1. c4 {[%clk 0:03:00.9]} 1... e6 {[%clk 0:02:54.1]} 2. Nc3 {[%clk 0:03:00.4]}
2... d5 {[%clk 0:02:49.8]} 3. e3 {[%clk 0:02:59.9]} 3... Nf6 {[%clk 0:02:44.2]}
4. b3 {[%clk 0:02:59.5]} 4... g6 {[%clk 0:02:41.3]} 5. Bb2 {[%clk 0:02:59]} 5...
Bg7 {[%clk 0:02:41.9]} 6. Nf3 {[%clk 0:02:57.2]} 6... O-O {[%clk 0:02:42.3]} 7.
Be2 {[%clk 0:02:56.8]} 7... b6 {[%clk 0:02:42.6]} 8. O-O {[%clk 0:02:55.9]} 8...
Bb7 {[%clk 0:02:43.1]} 9. cxd5 {[%clk 0:02:56]} 9... Nxd5 {[%clk 0:02:43]} 10.
a3 {[%clk 0:02:54.3]} 10... c5 {[%clk 0:02:42]} 11. Qc2 {[%clk 0:02:53.2]} 11...
Nc6 {[%clk 0:02:41]} 12. Nxd5 {[%clk 0:02:49.9]} 12... Qxd5 {[%clk 0:02:41.9]}
13. Bxg7 {[%clk 0:02:48.7]} 13... Kxg7 {[%clk 0:02:42.8]} 14. Qc3+ {[%clk
0:02:40.6]} 14... f6 {[%clk 0:02:42.2]} 15. Rfd1 {[%clk 0:02:32.7]} 15... e5
{[%clk 0:02:28.1]} 16. d3 {[%clk 0:02:28.1]} 16... Rac8 {[%clk 0:02:21.1]} 17.
Qc4 {[%clk 0:02:25]} 17... Rfd8 {[%clk 0:02:19.6]} 18. Rac1 {[%clk 0:02:22.3]}
18... Na5 {[%clk 0:02:12.5]} 19. Qxd5 {[%clk 0:02:15.2]} 19... Bxd5 {[%clk
0:02:13.4]} 20. b4 {[%clk 0:02:15.1]} 20... Nb3 {[%clk 0:02:14]} 21. Rc3 {[%clk
0:02:09.7]} 21... cxb4 {[%clk 0:02:14]} 22. Rxc8 {[%clk 0:02:09.6]} 22... Rxc8
{[%clk 0:02:14.9]} 23. axb4 {[%clk 0:02:09.9]} 23... Rc2 {[%clk 0:02:15.5]} 24.
Kf1 {[%clk 0:02:03.8]} 24... a5 {[%clk 0:02:04.6]} 25. bxa5 {[%clk 0:02:01.1]}
25... bxa5 {[%clk 0:02:05.5]} 26. e4 {[%clk 0:01:54.4]} 26... Bc6 {[%clk
0:01:56.7]} 27. Rb1 {[%clk 0:01:28.7]} 27... a4 {[%clk 0:01:55.3]} 28. Bd1
{[%clk 0:01:27.9]} 28... Rc1 {[%clk 0:01:44.2]} 29. Rxc1 {[%clk 0:01:23.4]}
29... Nxc1 {[%clk 0:01:45.1]} 30. Bxa4 {[%clk 0:00:53.4]} 30... Bxa4 {[%clk
0:01:46]} 31. d4 {[%clk 0:00:53.8]} 31... Bb5+ {[%clk 0:01:42.9]} 32. Ke1 {[%clk
0:00:50.2]} 32... Nd3+ {[%clk 0:01:42.6]} 33. Kf1 {[%clk 0:00:48.1]} 33... Nf4+
{[%clk 0:01:30]} 34. Ke1 {[%clk 0:00:44.5]} 34... Nxg2+ {[%clk 0:01:29.4]} 35.
Kd2 {[%clk 0:00:45.1]} 35... exd4 {[%clk 0:01:27.4]} 36. Nxd4 {[%clk 0:00:46]}
36... Bd7 {[%clk 0:01:28]} 37. Kd3 {[%clk 0:00:41.2]} 37... Nf4+ {[%clk
0:01:27.2]} 38. Ke3 {[%clk 0:00:40.7]} 38... Ne6 {[%clk 0:01:27.7]} 39. Ne2
{[%clk 0:00:37.5]} 39... g5 {[%clk 0:01:26.7]} 40. e5 {[%clk 0:00:34.1]} 40...
fxe5 {[%clk 0:01:22.2]} 41. Ke4 {[%clk 0:00:34]} 41... Nf4 {[%clk 0:01:22.5]}
42. Ng3 {[%clk 0:00:28.1]} 42... Ng6 {[%clk 0:01:20.6]} 43. Nh5+ {[%clk
0:00:27.2]} 43... Kf7 {[%clk 0:01:19.2]} 44. Kd5 {[%clk 0:00:26.9]} 44... Bg4
{[%clk 0:01:15.4]} 45. Ng3 {[%clk 0:00:25.8]} 45... Bf3+ {[%clk 0:01:15.9]} 46.
Kd6 {[%clk 0:00:25.6]} 46... h5 {[%clk 0:01:16.4]} 47. Nf5 {[%clk 0:00:23.8]}
47... Kf6 {[%clk 0:01:15.5]} 48. Ne3 {[%clk 0:00:22.6]} 48... Nf4 {[%clk
0:01:12.7]} 49. Nc4 {[%clk 0:00:20.5]} 49... Nd3 {[%clk 0:01:12]} 50. Ne3 {[%clk
0:00:19.9]} 50... Nxf2 {[%clk 0:01:11.3]} 51. Nc4 {[%clk 0:00:18.5]} 51... Ne4+
{[%clk 0:01:07.8]} 52. Kd7 {[%clk 0:00:16.6]} 0-1

[Event "*** Titled Tuesday Blitz"]
[Site "Chess.com"]
[Date "2020.04.21"]
[Round "9"]
[White "kleopl"]
[Black "Jenia84"]
[Result "0-1"]
[WhiteElo "2432"]
[BlackElo "2313"]
[TimeControl "180+1"]
[EndTime "11:49:26 PDT"]
[Termination "Jenia84 won by checkmate"]

1. c4 {[%clk 0:03:00.9]} 1... Nf6 {[%clk 0:02:59.2]} 2. Nc3 {[%clk 0:02:59]}
2... e5 {[%clk 0:02:55.3]} 3. Nf3 {[%clk 0:02:58.1]} 3... Nc6 {[%clk 0:02:53.1]}
4. e4 {[%clk 0:02:58.2]} 4... Bc5 {[%clk 0:02:51.2]} 5. Nxe5 {[%clk 0:02:57.4]}
5... Nxe5 {[%clk 0:02:47.1]} 6. d4 {[%clk 0:02:56.9]} 6... Bb4 {[%clk
0:02:46.9]} 7. dxe5 {[%clk 0:02:57]} 7... Nxe4 {[%clk 0:02:43.2]} 8. Qf3 {[%clk
0:02:57.6]} 8... Nxc3 {[%clk 0:02:41.1]} 9. bxc3 {[%clk 0:02:58.5]} 9... Bc5
{[%clk 0:02:39.1]} 10. Qg3 {[%clk 0:02:56.5]} 10... g6 {[%clk 0:02:16.4]} 11.
Bg5 {[%clk 0:02:54.3]} 11... Be7 {[%clk 0:02:14.9]} 12. Bh6 {[%clk 0:02:54.5]}
12... Bf8 {[%clk 0:02:08]} 13. Bf4 {[%clk 0:02:53.4]} 13... Bg7 {[%clk
0:01:58.9]} 14. h4 {[%clk 0:02:45.9]} 14... Qe7 {[%clk 0:01:58.4]} 15. Be2
{[%clk 0:02:41.3]} 15... O-O {[%clk 0:01:53.7]} 16. Rd1 {[%clk 0:02:29.5]} 16...
Re8 {[%clk 0:01:44.5]} 17. Rd2 {[%clk 0:02:26.1]} 17... Bxe5 {[%clk 0:01:41.6]}
18. Bxe5 {[%clk 0:02:22.9]} 18... Qxe5 {[%clk 0:01:41.9]} 19. Qf3 {[%clk
0:02:21.8]} 19... d6 {[%clk 0:01:33.6]} 20. O-O {[%clk 0:02:18.1]} 20... Qe4
{[%clk 0:01:26.6]} 21. Qg3 {[%clk 0:02:12.4]} 21... Bf5 {[%clk 0:01:23.6]} 22.
Bf3 {[%clk 0:02:02.6]} 22... Qxc4 {[%clk 0:01:19.7]} 23. Bxb7 {[%clk 0:02:02.7]}
23... Rab8 {[%clk 0:01:18.4]} 24. Bd5 {[%clk 0:02:02.8]} 24... Qc5 {[%clk
0:01:12.1]} 25. h5 {[%clk 0:01:56.8]} 25... Be6 {[%clk 0:01:08.8]} 26. c4 {[%clk
0:01:35.2]} 26... Bxd5 {[%clk 0:01:07.8]} 27. cxd5 {[%clk 0:01:36.1]} 27... Re5
{[%clk 0:01:06.4]} 28. hxg6 {[%clk 0:01:33.5]} 28... hxg6 {[%clk 0:01:04.8]} 29.
Rfd1 {[%clk 0:01:33.1]} 29... Rbe8 {[%clk 0:01:03.1]} 30. Qf3 {[%clk 0:01:28.5]}
30... Re1+ {[%clk 0:00:58.4]} 31. Kh2 {[%clk 0:01:25.4]} 31... Rxd1 {[%clk
0:00:53.2]} 32. Qxd1 {[%clk 0:01:25.2]} 32... Qc3 {[%clk 0:00:48.7]} 33. g3
{[%clk 0:01:18.8]} 33... Qe5 {[%clk 0:00:46.3]} 34. Kg2 {[%clk 0:01:15]} 34...
Qe4+ {[%clk 0:00:45.6]} 35. Kh2 {[%clk 0:01:14.5]} 35... Kg7 {[%clk 0:00:44.2]}
36. Qa1+ {[%clk 0:01:13.5]} 36... f6 {[%clk 0:00:43.2]} 37. f3 {[%clk
0:00:27.9]} 37... Qxf3 {[%clk 0:00:39.5]} 38. Rg2 {[%clk 0:00:23.4]} 38... Rh8+
{[%clk 0:00:29.5]} 39. Kg1 {[%clk 0:00:23.1]} 39... Qe3+ {[%clk 0:00:29.5]} 40.
Kf1 {[%clk 0:00:23.2]} 40... Rh1+ {[%clk 0:00:27.8]} 41. Rg1 {[%clk 0:00:23.6]}
41... Rxg1# {[%clk 0:00:27.8]} 0-1

[Event "*** Titled Tuesday Blitz"]
[Site "Chess.com"]
[Date "2020.04.21"]
[Round "9"]
[White "Grandmaster2B"]
[Black "LuisFSiles"]
[Result "1-0"]
[WhiteElo "2518"]
[BlackElo "2268"]
[TimeControl "180+1"]
[EndTime "11:49:29 PDT"]
[Termination "Grandmaster2B won by resignation"]

1. e4 {[%clk 0:03:00.9]} 1... c5 {[%clk 0:02:59]} 2. Nf3 {[%clk 0:03:01.3]} 2...
d6 {[%clk 0:02:58.7]} 3. d4 {[%clk 0:03:00.8]} 3... cxd4 {[%clk 0:02:58.9]} 4.
Nxd4 {[%clk 0:03:01.7]} 4... Nf6 {[%clk 0:02:58.7]} 5. Nc3 {[%clk 0:03:01.5]}
5... g6 {[%clk 0:02:58.4]} 6. Be3 {[%clk 0:02:59.9]} 6... Bg7 {[%clk 0:02:58.4]}
7. f3 {[%clk 0:03:00.3]} 7... O-O {[%clk 0:02:58.4]} 8. Bc4 {[%clk 0:03:00.8]}
8... Nc6 {[%clk 0:02:58.2]} 9. Qd2 {[%clk 0:03:01.1]} 9... Bd7 {[%clk
0:02:58.3]} 10. O-O-O {[%clk 0:03:01.3]} 10... Qa5 {[%clk 0:02:58.3]} 11. Nb3
{[%clk 0:02:41.2]} 11... Qc7 {[%clk 0:02:52.6]} 12. h4 {[%clk 0:02:30.3]} 12...
Ne5 {[%clk 0:02:51]} 13. Be2 {[%clk 0:02:30.6]} 13... a5 {[%clk 0:02:41.5]} 14.
Kb1 {[%clk 0:02:24.5]} 14... a4 {[%clk 0:02:40.2]} 15. Nc1 {[%clk 0:02:24.7]}
15... a3 {[%clk 0:02:40.2]} 16. b3 {[%clk 0:02:24.6]} 16... Rfc8 {[%clk
0:02:23.3]} 17. Bd4 {[%clk 0:02:24.3]} 17... Nc6 {[%clk 0:02:19.4]} 18. Nb5
{[%clk 0:02:24.2]} 18... Qd8 {[%clk 0:02:15.8]} 19. Ba1 {[%clk 0:02:21.6]} 19...
Ra5 {[%clk 0:01:59]} 20. h5 {[%clk 0:02:12.8]} 20... Ne5 {[%clk 0:01:52.5]} 21.
Nd4 {[%clk 0:02:00.7]} 21... Nxh5 {[%clk 0:01:43.6]} 22. g4 {[%clk 0:01:57.7]}
22... Nf6 {[%clk 0:01:39.5]} 23. g5 {[%clk 0:01:57.6]} 23... Nh5 {[%clk
0:01:34.2]} 24. f4 {[%clk 0:01:57.1]} 24... Ng4 {[%clk 0:01:33.6]} 25. Rdg1
{[%clk 0:01:55.3]} 25... f5 {[%clk 0:01:14.7]} 26. exf5 {[%clk 0:01:48]} 26...
Bxf5 {[%clk 0:01:06.2]} 27. Nxf5 {[%clk 0:01:32.2]} 27... Bxa1 {[%clk
0:00:58.4]} 28. Kxa1 {[%clk 0:01:32.3]} 28... gxf5 {[%clk 0:00:57.3]} 29. Rxh5
{[%clk 0:01:29.4]} 29... Rac5 {[%clk 0:00:56.1]} 30. c4 {[%clk 0:01:27.7]} 30...
Qf8 {[%clk 0:00:54.4]} 31. Nd3 {[%clk 0:01:04.8]} 31... Qg7+ {[%clk 0:00:51.5]}
32. Kb1 {[%clk 0:01:05.3]} 32... R5c7 {[%clk 0:00:42.1]} 33. Nb4 {[%clk
0:01:01]} 33... b5 {[%clk 0:00:29.9]} 34. Nd5 {[%clk 0:00:58.6]} 34... Rc5
{[%clk 0:00:28.5]} 35. Qc3 {[%clk 0:00:52.1]} 35... e5 {[%clk 0:00:27.5]} 36.
Bxg4 {[%clk 0:00:48.2]} 36... fxg4 {[%clk 0:00:21.8]} 37. Nf6+ {[%clk
0:00:48.1]} 37... Kf8 {[%clk 0:00:17.5]} 38. Rxh7 {[%clk 0:00:43.5]} 38... Qg6+
{[%clk 0:00:17.8]} 39. Qc2 {[%clk 0:00:40.7]} 39... e4 {[%clk 0:00:17.9]} 40.
Qxe4 {[%clk 0:00:35.7]} 40... Qxe4+ {[%clk 0:00:14.9]} 41. Nxe4 {[%clk
0:00:36.6]} 1-0

[Event "*** Titled Tuesday Blitz"]
[Site "Chess.com"]
[Date "2020.04.21"]
[Round "9"]
[White "PawnEatingZombie"]
[Black "DDTerziev04"]
[Result "0-1"]
[WhiteElo "2145"]
[BlackElo "2302"]
[TimeControl "180+1"]
[EndTime "11:49:30 PDT"]
[Termination "DDTerziev04 won on time"]

1. d4 {[%clk 0:03:00.9]} 1... d5 {[%clk 0:02:59.1]} 2. c4 {[%clk 0:03:01.3]}
2... dxc4 {[%clk 0:02:58.7]} 3. e4 {[%clk 0:03:01]} 3... Nf6 {[%clk 0:02:58]} 4.
e5 {[%clk 0:03:00.4]} 4... Nd5 {[%clk 0:02:57.7]} 5. Bxc4 {[%clk 0:03:00.8]}
5... Nb6 {[%clk 0:02:57.7]} 6. Bd3 {[%clk 0:02:53.9]} 6... Nc6 {[%clk
0:02:57.2]} 7. Ne2 {[%clk 0:02:53.1]} 7... Bg4 {[%clk 0:02:51.9]} 8. f3 {[%clk
0:02:51.3]} 8... Bh5 {[%clk 0:02:50.2]} 9. Nbc3 {[%clk 0:02:40.6]} 9... e6
{[%clk 0:02:47.1]} 10. a3 {[%clk 0:02:31.9]} 10... f6 {[%clk 0:02:44.9]} 11.
exf6 {[%clk 0:02:16]} 11... Qxf6 {[%clk 0:02:41.7]} 12. Ne4 {[%clk 0:02:04]}
12... Qd8 {[%clk 0:02:32.3]} 13. Be3 {[%clk 0:01:50.4]} 13... Nd5 {[%clk
0:02:28]} 14. Bf2 {[%clk 0:01:50.2]} 14... Be7 {[%clk 0:02:26.5]} 15. O-O {[%clk
0:01:49.5]} 15... O-O {[%clk 0:02:25.7]} 16. Bc2 {[%clk 0:01:40.6]} 16... Bf6
{[%clk 0:02:19.9]} 17. Qe1 {[%clk 0:01:27.3]} 17... b6 {[%clk 0:01:58.7]} 18.
Rd1 {[%clk 0:01:25.5]} 18... Bg6 {[%clk 0:01:51.5]} 19. h4 {[%clk 0:01:00.7]}
19... Kh8 {[%clk 0:01:48.7]} 20. g4 {[%clk 0:01:00.5]} 20... Be7 {[%clk
0:01:38.5]} 21. h5 {[%clk 0:00:59.2]} 21... Bxe4 {[%clk 0:01:38]} 22. Bxe4
{[%clk 0:00:59.2]} 22... Bd6 {[%clk 0:01:31.1]} 23. Bh4 {[%clk 0:00:55.7]} 23...
Qe8 {[%clk 0:01:25.5]} 24. Qd2 {[%clk 0:00:27.4]} 24... Qf7 {[%clk 0:01:16.6]}
25. Bb1 {[%clk 0:00:22.7]} 25... Nce7 {[%clk 0:00:43.6]} 26. Qd3 {[%clk
0:00:20.8]} 26... g6 {[%clk 0:00:42.7]} 27. h6 {[%clk 0:00:17.8]} 27... Rae8
{[%clk 0:00:38.3]} 28. Qe4 {[%clk 0:00:16.5]} 28... Nf4 {[%clk 0:00:33.4]} 29.
Nxf4 {[%clk 0:00:11]} 29... Qxf4 {[%clk 0:00:33.2]} 30. Qxf4 {[%clk 0:00:10.1]}
30... Bxf4 {[%clk 0:00:34.1]} 31. Rfe1 {[%clk 0:00:07.3]} 31... Nd5 {[%clk
0:00:33.5]} 32. Be4 {[%clk 0:00:05.6]} 32... Ne3 {[%clk 0:00:31.7]} 33. Rd3
{[%clk 0:00:04.3]} 33... Nd5 {[%clk 0:00:31.4]} 34. Bf2 {[%clk 0:00:02.7]} 34...
Bxh6 {[%clk 0:00:27.7]} 0-1

[Event "*** Titled Tuesday Blitz"]
[Site "Chess.com"]
[Date "2020.04.21"]
[Round "9"]
[White "Rainmond"]
[Black "vpsetter"]
[Result "1-0"]
[WhiteElo "2735"]
[BlackElo "2611"]
[TimeControl "180+1"]
[EndTime "11:49:31 PDT"]
[Termination "Rainmond won on time"]

1. Nf3 {[%clk 0:03:00]} 1... Nf6 {[%clk 0:02:15]} 2. d4 {[%clk 0:02:59.7]} 2...
e6 {[%clk 0:02:15.5]} 3. c4 {[%clk 0:02:59.6]} 3... d5 {[%clk 0:02:15.1]} 4. Nc3
{[%clk 0:02:59.7]} 4... Be7 {[%clk 0:02:11.8]} 5. Bf4 {[%clk 0:02:59.6]} 5...
O-O {[%clk 0:02:09.8]} 6. e3 {[%clk 0:02:59.5]} 6... Nbd7 {[%clk 0:02:04.1]} 7.
h3 {[%clk 0:02:59.1]} 7... c5 {[%clk 0:02:01.2]} 8. cxd5 {[%clk 0:02:58.8]} 8...
exd5 {[%clk 0:02:01.4]} 9. Bd3 {[%clk 0:02:58.4]} 9... cxd4 {[%clk 0:02:00.2]}
10. Nxd4 {[%clk 0:02:58.2]} 10... Nc5 {[%clk 0:02:00.1]} 11. O-O {[%clk
0:02:58]} 11... a6 {[%clk 0:01:54.5]} 12. Qc2 {[%clk 0:02:55.7]} 12... Re8
{[%clk 0:01:43.8]} 13. Rfd1 {[%clk 0:02:53.7]} 13... Bd7 {[%clk 0:01:37.7]} 14.
Bf5 {[%clk 0:02:52.5]} 14... Rc8 {[%clk 0:01:33]} 15. Bxd7 {[%clk 0:02:51.6]}
15... Qxd7 {[%clk 0:01:32.8]} 16. Qf5 {[%clk 0:02:51.1]} 16... Ne6 {[%clk
0:01:13.1]} 17. Be5 {[%clk 0:02:44.3]} 17... Red8 {[%clk 0:01:01.2]} 18. Nf3
{[%clk 0:02:40.5]} 18... Nc5 {[%clk 0:00:22.4]} 19. Qxd7 {[%clk 0:02:39.1]}
19... Rxd7 {[%clk 0:00:23]} 20. Rac1 {[%clk 0:02:35.4]} 20... Rcd8 {[%clk
0:00:15.6]} 21. Bd4 {[%clk 0:02:31]} 21... Ne6 {[%clk 0:00:15.1]} 22. Ne5 {[%clk
0:02:30.5]} 22... Rc7 {[%clk 0:00:05.4]} 23. Bb6 {[%clk 0:02:28.4]} 23... Bd6
{[%clk 0:00:06]} 24. Bxc7 {[%clk 0:02:26.6]} 24... Bxc7 {[%clk 0:00:06.9]} 25.
Nf3 {[%clk 0:02:25.9]} 25... Kf8 {[%clk 0:00:06.3]} 26. Ne2 {[%clk 0:02:23.9]}
26... Bd6 {[%clk 0:00:05.4]} 27. Nfd4 {[%clk 0:02:22.3]} 27... Ng5 {[%clk
0:00:05.2]} 28. f3 {[%clk 0:02:21.6]} 28... Re8 {[%clk 0:00:04.5]} 29. Kf2
{[%clk 0:02:21.5]} 29... g6 {[%clk 0:00:04.4]} 30. h4 {[%clk 0:02:17.8]} 30...
Ne6 {[%clk 0:00:04.7]} 31. Nxe6+ {[%clk 0:02:17.9]} 31... fxe6 {[%clk
0:00:05.5]} 32. Nd4 {[%clk 0:02:17.8]} 32... Kf7 {[%clk 0:00:05.1]} 33. b4
{[%clk 0:02:16.1]} 33... h6 {[%clk 0:00:05.6]} 34. b5 {[%clk 0:02:15.4]} 34...
a5 {[%clk 0:00:06.1]} 35. b6 {[%clk 0:02:15.3]} 35... Nd7 {[%clk 0:00:06.4]} 36.
Nb5 {[%clk 0:02:15.3]} 36... Bb8 {[%clk 0:00:06.8]} 37. e4 {[%clk 0:02:12]}
37... Nxb6 {[%clk 0:00:05.6]} 38. Nc3 {[%clk 0:02:11.1]} 38... Rd8 {[%clk
0:00:03.4]} 39. Rb1 {[%clk 0:02:10.5]} 39... Ba7 {[%clk 0:00:03.9]} 40. Ke2
{[%clk 0:02:07.5]} 40... Rc8 {[%clk 0:00:03.2]} 41. Nb5 {[%clk 0:02:07.4]} 41...
Bb8 {[%clk 0:00:03.5]} 42. Nd4 {[%clk 0:02:05.8]} 42... Ba7 {[%clk 0:00:04.3]}
43. exd5 {[%clk 0:02:05.7]} 43... exd5 {[%clk 0:00:03.9]} 44. Nb5 {[%clk
0:02:05.8]} 44... Bb8 {[%clk 0:00:04]} 45. Nd6+ {[%clk 0:02:05.7]} 45... Bxd6
{[%clk 0:00:03.8]} 46. Rxb6 {[%clk 0:02:04.9]} 46... Bf4 {[%clk 0:00:02.8]} 47.
Rxb7+ {[%clk 0:01:59.7]} 47... Ke6 {[%clk 0:00:02.9]} 48. Rb6+ {[%clk
0:01:59.5]} 48... Ke5 {[%clk 0:00:03.6]} 49. Kd3 {[%clk 0:01:59.3]} 49... d4
{[%clk 0:00:02.8]} 50. Rb5+ {[%clk 0:01:58.3]} 1-0

[Event "*** Titled Tuesday Blitz"]
[Site "Chess.com"]
[Date "2020.04.21"]
[Round "9"]
[White "Bastiandash"]
[Black "Zoffy13"]
[Result "1-0"]
[WhiteElo "1996"]
[BlackElo "2108"]
[TimeControl "180+1"]
[EndTime "11:49:31 PDT"]
[Termination "Bastiandash won on time"]

1. d4 {[%clk 0:03:00.9]} 1... Nf6 {[%clk 0:02:59.3]} 2. Nf3 {[%clk 0:03:01.8]}
2... g6 {[%clk 0:02:56.8]} 3. c3 {[%clk 0:03:02.7]} 3... Bg7 {[%clk 0:02:54.3]}
4. Bg5 {[%clk 0:03:03.3]} 4... O-O {[%clk 0:02:54.5]} 5. Nbd2 {[%clk 0:03:02.5]}
5... d6 {[%clk 0:02:53]} 6. e4 {[%clk 0:03:02.9]} 6... Nc6 {[%clk 0:02:30.6]} 7.
Bc4 {[%clk 0:02:58.3]} 7... e5 {[%clk 0:02:28.9]} 8. dxe5 {[%clk 0:02:57.4]}
8... dxe5 {[%clk 0:02:24.4]} 9. O-O {[%clk 0:02:57.3]} 9... h6 {[%clk
0:02:24.3]} 10. Bh4 {[%clk 0:02:55.7]} 10... Qe8 {[%clk 0:02:14.2]} 11. Qc2
{[%clk 0:02:50.4]} 11... a6 {[%clk 0:02:10.2]} 12. a4 {[%clk 0:02:49.7]} 12...
Be6 {[%clk 0:02:04.8]} 13. Bxe6 {[%clk 0:02:48.1]} 13... Qxe6 {[%clk 0:02:05.7]}
14. Rfd1 {[%clk 0:02:44.7]} 14... Rad8 {[%clk 0:02:03.9]} 15. Nf1 {[%clk
0:02:41.9]} 15... Qc4 {[%clk 0:01:34.1]} 16. Bxf6 {[%clk 0:02:35.8]} 16... Bxf6
{[%clk 0:01:32.7]} 17. Ne3 {[%clk 0:02:36.2]} 17... Qe6 {[%clk 0:01:07.6]} 18.
Rxd8 {[%clk 0:02:32.6]} 18... Rxd8 {[%clk 0:01:07.1]} 19. Rd1 {[%clk 0:02:33.5]}
19... Rxd1+ {[%clk 0:01:03.5]} 20. Qxd1 {[%clk 0:02:34.4]} 20... Kg7 {[%clk
0:00:55.4]} 21. Nd5 {[%clk 0:02:25.5]} 21... Bd8 {[%clk 0:00:56]} 22. b4 {[%clk
0:02:22.7]} 22... f5 {[%clk 0:00:52.7]} 23. exf5 {[%clk 0:02:17.8]} 23... gxf5
{[%clk 0:00:53.6]} 24. b5 {[%clk 0:01:59.5]} 24... axb5 {[%clk 0:00:52.9]} 25.
axb5 {[%clk 0:02:00.4]} 25... Ne7 {[%clk 0:00:49.9]} 26. Nxe7 {[%clk 0:01:59.3]}
26... Bxe7 {[%clk 0:00:50.8]} 27. Qe2 {[%clk 0:01:58]} 27... Bf6 {[%clk
0:00:50]} 28. g3 {[%clk 0:01:53.5]} 28... Qb3 {[%clk 0:00:48.4]} 29. Nxe5 {[%clk
0:01:43.7]} 29... Qxc3 {[%clk 0:00:48.4]} 30. Nd7 {[%clk 0:01:37.8]} 30... Qc1+
{[%clk 0:00:38.8]} 31. Kg2 {[%clk 0:01:36.5]} 31... Qc3 {[%clk 0:00:33.2]} 32.
Qe8 {[%clk 0:01:21.5]} 32... Qc4 {[%clk 0:00:16.2]} 33. Qf8+ {[%clk 0:01:18.1]}
33... Kg6 {[%clk 0:00:10.1]} 34. Qxf6+ {[%clk 0:01:17.7]} 34... Kh7 {[%clk
0:00:10.5]} 35. Qxf5+ {[%clk 0:01:14.8]} 35... Kg7 {[%clk 0:00:09.1]} 36. Qe5+
{[%clk 0:01:14.3]} 36... Kf7 {[%clk 0:00:07.6]} 37. Qf5+ {[%clk 0:01:02.5]}
37... Ke7 {[%clk 0:00:07.6]} 38. Nf6 {[%clk 0:01:01]} 38... c5 {[%clk
0:00:05.3]} 39. bxc6 {[%clk 0:00:58.5]} 39... bxc6 {[%clk 0:00:04.7]} 40. Qe4+
{[%clk 0:00:56.9]} 40... Kxf6 {[%clk 0:00:04.4]} 41. Qxc4 {[%clk 0:00:56.3]} 1-0

[Event "*** Titled Tuesday Blitz"]
[Site "Chess.com"]
[Date "2020.04.21"]
[Round "9"]
[White "Jeffinho023"]
[Black "SamuelGhimpu2003"]
[Result "0-1"]
[WhiteElo "2496"]
[BlackElo "2676"]
[TimeControl "180+1"]
[EndTime "11:49:32 PDT"]
[Termination "SamuelGhimpu2003 won by checkmate"]

1. d4 {[%clk 0:03:00.9]} 1... Nf6 {[%clk 0:02:59.7]} 2. Nf3 {[%clk 0:03:00.8]}
2... g6 {[%clk 0:02:59.3]} 3. g3 {[%clk 0:03:00]} 3... Bg7 {[%clk 0:02:59.5]} 4.
Bg2 {[%clk 0:03:00.3]} 4... O-O {[%clk 0:02:59.4]} 5. O-O {[%clk 0:03:00.8]}
5... d5 {[%clk 0:02:59.8]} 6. c3 {[%clk 0:03:00.5]} 6... Bf5 {[%clk 0:02:29.1]}
7. Qb3 {[%clk 0:02:57.5]} 7... Qc8 {[%clk 0:02:24]} 8. Bg5 {[%clk 0:02:55.4]}
8... Nbd7 {[%clk 0:02:19.7]} 9. Nbd2 {[%clk 0:02:53.9]} 9... c6 {[%clk
0:02:12.9]} 10. Rfe1 {[%clk 0:02:49.1]} 10... Re8 {[%clk 0:02:08]} 11. Nh4
{[%clk 0:02:16.8]} 11... Be6 {[%clk 0:01:54.3]} 12. Qd1 {[%clk 0:02:04.9]} 12...
h6 {[%clk 0:01:51]} 13. Bxf6 {[%clk 0:02:04.6]} 13... exf6 {[%clk 0:01:43.7]}
14. e4 {[%clk 0:02:03.1]} 14... dxe4 {[%clk 0:01:43.6]} 15. Nxe4 {[%clk
0:02:02.9]} 15... f5 {[%clk 0:01:42.1]} 16. Nd6 {[%clk 0:02:02.1]} 16... Qc7
{[%clk 0:01:38.1]} 17. Nxe8 {[%clk 0:02:01.4]} 17... Rxe8 {[%clk 0:01:39]} 18.
d5 {[%clk 0:01:59.8]} 18... cxd5 {[%clk 0:01:36]} 19. Bxd5 {[%clk 0:01:59.1]}
19... Kh7 {[%clk 0:01:36.7]} 20. Bxe6 {[%clk 0:01:56.8]} 20... fxe6 {[%clk
0:01:37.6]} 21. Nf3 {[%clk 0:01:41.1]} 21... e5 {[%clk 0:01:35.1]} 22. Qd5
{[%clk 0:01:38.3]} 22... Nb6 {[%clk 0:01:29.9]} 23. Qb5 {[%clk 0:01:36.7]} 23...
Re7 {[%clk 0:01:30.2]} 24. Rad1 {[%clk 0:01:35.9]} 24... e4 {[%clk 0:01:28.2]}
25. Nd4 {[%clk 0:01:34.3]} 25... Nc4 {[%clk 0:01:27.5]} 26. Qd5 {[%clk
0:00:53.8]} 26... Nxb2 {[%clk 0:01:20.1]} 27. Ne6 {[%clk 0:00:48.7]} 27... Qc8
{[%clk 0:01:06.1]} 28. Rb1 {[%clk 0:00:32.2]} 28... Nd3 {[%clk 0:01:01.8]} 29.
Red1 {[%clk 0:00:08.3]} 29... Rxe6 {[%clk 0:00:58.8]} 30. Rxb7 {[%clk
0:00:08.1]} 30... a5 {[%clk 0:00:41.4]} 31. Ra7 {[%clk 0:00:07.5]} 31... Ra6
{[%clk 0:00:36.3]} 32. Rxa6 {[%clk 0:00:05.4]} 32... Qxa6 {[%clk 0:00:37.2]} 33.
Rb1 {[%clk 0:00:05.6]} 33... Qa7 {[%clk 0:00:33.8]} 34. Rb7 {[%clk 0:00:05.1]}
34... Qxf2+ {[%clk 0:00:33.1]} 35. Kh1 {[%clk 0:00:05.4]} 35... Qf1# {[%clk
0:00:34]} 0-1